[Event "Schack-SM 2022: Sverigemastarklassen"]
[Site "Fyrishov, Idrottsgatan 2, Uppsala, Sweden"]
[Date "2022.07.10"]
[Round "9.1"]
[White "Smith, Axel"]
[Black "Cramling, Pia"]
[Result "1/2-1/2"]
[TimeControl "90 minutes for 40 moves + 30 minutes for the rest of the game + 30 seconds per move from move one."]
[WhiteTitle "GM"]
[BlackTitle "GM"]
[WhiteFideId "1707930"]
[BlackFideId "1700030"]
[WhiteElo "2417"]
[BlackElo "2459"]

1. c4 {[%clk 01:30:58]} {[%emt 00:00:02]} c5 {[%clk 01:30:25]} {[%emt
00:00:35]} 2. Nf3 {[%clk 01:31:25]} {[%emt 00:00:03]} Nc6 {[%clk 01:29:30]}
{[%emt 00:01:25]} 3. d4 {[%clk 01:31:53]} {[%emt 00:00:03]} cxd4 {[%clk
01:29:52]} {[%emt 00:00:08]} 4. Nxd4 {[%clk 01:32:21]} {[%emt 00:00:02]} Nf6
{[%clk 01:30:04]} {[%emt 00:00:17]} 5. Nc3 {[%clk 01:32:49]} {[%emt 00:00:03]}
e6 {[%clk 01:30:11]} {[%emt 00:00:22]} 6. Bf4 {[%clk 01:33:08]} {[%emt
00:00:11]} d6 {[%clk 01:28:30]} {[%emt 00:02:11]} 7. Nxc6 {[%clk 01:33:17]}
{[%emt 00:00:21]} bxc6 {[%clk 01:28:47]} {[%emt 00:00:13]} 8. e4 {[%clk
01:33:29]} {[%emt 00:00:18]} e5 {[%clk 01:22:42]} {[%emt 00:06:34]} 9. Be3
{[%clk 01:33:57]} {[%emt 00:00:04]} Be7 {[%clk 01:21:29]} {[%emt 00:01:42]} 10.
Be2 {[%clk 01:34:25]} {[%emt 00:00:03]} O-O {[%clk 01:21:23]} {[%emt 00:00:36]}
11. O-O {[%clk 01:34:52]} {[%emt 00:00:03]} Be6 {[%clk 01:19:52]} {[%emt
00:02:00]} 12. b4 {[%clk 01:35:03]} {[%emt 00:00:19]} a6 {[%clk 00:54:57]}
{[%emt 00:25:24]} 13. a4 {[%clk 01:17:47]} {[%emt 00:17:48]} d5 {[%clk
00:52:22]} {[%emt 00:03:04]} 14. cxd5 {[%clk 01:16:21]} {[%emt 00:01:57]} cxd5
{[%clk 00:52:39]} {[%emt 00:00:12]} 15. exd5 {[%clk 01:16:05]} {[%emt
00:00:47]} Nxd5 {[%clk 00:50:21]} {[%emt 00:02:48]} 16. Nxd5 {[%clk 01:16:32]}
{[%emt 00:00:03]} Qxd5 {[%clk 00:48:25]} {[%emt 00:02:25]} 17. Qxd5 {[%clk
01:10:27]} {[%emt 00:06:36]} Bxd5 {[%clk 00:48:52]} {[%emt 00:00:02]} 18. Rfd1
{[%clk 01:10:41]} {[%emt 00:00:16]} Bb3 {[%clk 00:35:28]} {[%emt 00:13:53]} 19.
Rdb1 {[%clk 01:06:28]} {[%emt 00:04:44]} Bd5 {[%clk 00:32:10]} {[%emt
00:03:48]} 20. a5 {[%clk 00:59:19]} {[%emt 00:07:39]} f5 {[%clk 00:26:02]}
{[%emt 00:06:38]} 21. b5 {[%clk 00:50:40]} {[%emt 00:09:10]} f4 {[%clk
00:24:42]} {[%emt 00:01:50]} 22. Bb6 {[%clk 00:50:00]} {[%emt 00:01:10]} axb5
{[%clk 00:23:09]} {[%emt 00:02:02]} 23. Bxb5 {[%clk 00:49:46]} {[%emt
00:00:44]} Rf6 {[%clk 00:18:14]} {[%emt 00:05:24]} 24. Bf1 {[%clk 00:37:52]}
{[%emt 00:12:26]} Kf7 {[%clk 00:17:03]} {[%emt 00:01:41]} 25. a6 {[%clk
00:32:36]} {[%emt 00:05:47]} Rc6 {[%clk 00:16:56]} {[%emt 00:00:35]} 26. Ba5
{[%clk 00:18:00]} {[%emt 00:15:07]} Bc5 {[%clk 00:10:48]} {[%emt 00:06:37]} 27.
Rb7+ {[%clk 00:13:20]} {[%emt 00:05:11]} Kf6 {[%clk 00:09:48]} {[%emt
00:01:29]} 28. Bb5 {[%clk 00:03:24]} {[%emt 00:10:26]} Rd6 {[%clk 00:06:20]}
{[%emt 00:03:57]} 29. Rc1 {[%clk 00:02:05]} {[%emt 00:01:51]} Rdxa6 {[%clk
00:05:05]} {[%emt 00:01:44]} 30. Rxc5 {[%clk 00:00:51]} {[%emt 00:01:45]} Bxb7
{[%clk 00:05:22]} {[%emt 00:00:12]} 31. Bxa6 {[%clk 00:01:01]} {[%emt
00:00:21]} Rxa6 {[%clk 00:05:28]} {[%emt 00:00:23]} 32. Bc3 {[%clk 00:01:06]}
{[%emt 00:00:26]} Re6 {[%clk 00:05:08]} {[%emt 00:00:49]} 33. f3 {[%clk
00:00:50]} {[%emt 00:00:47]} h6 {[%clk 00:03:47]} {[%emt 00:01:49]} 34. h4
{[%clk 00:00:41]} {[%emt 00:00:40]} g6 {[%clk 00:03:14]} {[%emt 00:01:03]} 35.
Kf2 {[%clk 00:00:55]} {[%emt 00:00:17]} Kf5 {[%clk 00:02:15]} {[%emt 00:01:28]}
36. Bb2 {[%clk 00:00:41]} {[%emt 00:00:45]} Re7 {[%clk 00:01:54]} {[%emt
00:00:49]} 37. Bc3 {[%clk 00:00:57]} {[%emt 00:00:15]} g5 {[%clk 00:01:46]}
{[%emt 00:00:37]} 38. hxg5 {[%clk 00:01:25]} {[%emt 00:00:04]} hxg5 {[%clk
00:02:10]} {[%emt 00:00:05]} 39. g3 {[%clk 00:00:41]} {[%emt 00:01:15]} g4
{[%clk 00:00:53]} {[%emt 00:01:46]} 40. gxf4 {[%clk 00:00:42]} {[%emt
00:00:30]} Kxf4 {[%clk 00:01:06]} {[%emt 00:00:16]} 41. Bxe5+ {[%clk 00:24:58]}
{[%emt 00:06:14]} Rxe5 {[%clk 00:31:20]} {[%emt 00:00:15]} 42. Rxe5 {[%clk
00:24:44]} {[%emt 00:00:46]} g3+ {[%clk 00:31:14]} {[%emt 00:00:35]} 43. Kg2
{[%clk 00:21:57]} {[%emt 00:03:17]} Bxf3+ {[%clk 00:31:37]} {[%emt 00:00:08]}
44. Kh3 {[%clk 00:22:19]} {[%emt 00:00:08]} Kxe5 {[%clk 00:31:58]} {[%emt
00:00:09]} 45. Kxg3 {[%clk 00:22:13]} 1/2-1/2

[Event "Schack-SM 2022: Sverigemastarklassen"]
[Site "Fyrishov, Idrottsgatan 2, Uppsala, Sweden"]
[Date "2022.07.10"]
[Round "9.2"]
[White "Carlsson, Ludvig"]
[Black "Blomqvist, Erik"]
[Result "1/2-1/2"]
[TimeControl "90 minutes for 40 moves + 30 minutes for the rest of the game + 30 seconds per move from move one."]
[WhiteTitle "IM"]
[BlackTitle "GM"]
[WhiteFideId "1727010"]
[BlackFideId "1709437"]
[WhiteElo "2399"]
[BlackElo "2521"]

1. d4 {[%clk 01:30:55]} {[%emt 00:00:04]} Nf6 {[%clk 01:28:47]} {[%emt
00:02:14]} 2. c4 {[%clk 01:30:51]} {[%emt 00:00:33]} e6 {[%clk 01:29:11]}
{[%emt 00:00:07]} 3. Nf3 {[%clk 01:29:42]} {[%emt 00:01:39]} Bb4+ {[%clk
01:27:34]} {[%emt 00:02:08]} 4. Bd2 {[%clk 01:29:44]} {[%emt 00:00:27]} Bxd2+
{[%clk 01:27:57]} {[%emt 00:00:07]} 5. Qxd2 {[%clk 01:29:51]} {[%emt 00:00:23]}
d5 {[%clk 01:28:14]} {[%emt 00:00:14]} 6. Nc3 {[%clk 01:27:25]} {[%emt
00:02:54]} O-O {[%clk 01:28:15]} {[%emt 00:00:30]} 7. e3 {[%clk 01:27:46]}
{[%emt 00:00:08]} Qe7 {[%clk 01:28:21]} {[%emt 00:00:25]} 8. cxd5 {[%clk
01:27:01]} {[%emt 00:01:15]} exd5 {[%clk 01:28:43]} {[%emt 00:00:08]} 9. Bd3
{[%clk 01:27:23]} {[%emt 00:00:07]} b6 {[%clk 01:28:08]} {[%emt 00:01:06]} 10.
O-O {[%clk 01:24:06]} {[%emt 00:03:45]} Bb7 {[%clk 01:28:28]} {[%emt 00:00:12]}
11. Ne5 {[%clk 01:20:59]} {[%emt 00:03:35]} c5 {[%clk 01:27:58]} {[%emt
00:01:03]} 12. f4 {[%clk 01:20:08]} {[%emt 00:01:20]} Nc6 {[%clk 01:24:46]}
{[%emt 00:03:43]} 13. Rad1 {[%clk 01:14:09]} {[%emt 00:06:28]} Rad8 {[%clk
01:22:21]} {[%emt 00:02:54]} 14. Bb1 {[%clk 01:09:41]} {[%emt 00:04:59]} Qe6
{[%clk 01:14:21]} {[%emt 00:08:31]} 15. Qe1 {[%clk 01:05:12]} {[%emt 00:04:57]}
Ne7 {[%clk 01:05:39]} {[%emt 00:09:14]} 16. f5 {[%clk 01:03:11]} {[%emt
00:02:30]} Qd6 {[%clk 01:04:44]} {[%emt 00:01:25]} 17. Qh4 {[%clk 00:58:03]}
{[%emt 00:05:38]} Rfe8 {[%clk 00:49:12]} {[%emt 00:16:03]} 18. Nb5 {[%clk
00:49:56]} {[%emt 00:08:37]} Qb8 {[%clk 00:47:57]} {[%emt 00:01:44]} 19. Rf3
{[%clk 00:50:09]} {[%emt 00:00:16]} Nc6 {[%clk 00:45:35]} {[%emt 00:02:52]} 20.
Ng4 {[%clk 00:46:31]} {[%emt 00:04:08]} Nxg4 {[%clk 00:44:09]} {[%emt
00:01:56]} 21. Qxg4 {[%clk 00:46:36]} {[%emt 00:00:26]} f6 {[%clk 00:43:40]}
{[%emt 00:01:00]} 22. Rg3 {[%clk 00:43:46]} {[%emt 00:03:19]} Rd7 {[%clk
00:36:49]} {[%emt 00:07:21]} 23. Nc3 {[%clk 00:43:40]} {[%emt 00:00:36]} cxd4
{[%clk 00:17:01]} {[%emt 00:20:18]} 24. exd4 {[%clk 00:39:12]} {[%emt
00:04:58]} Na5 {[%clk 00:14:41]} {[%emt 00:02:49]} 25. Bd3 {[%clk 00:38:00]}
{[%emt 00:01:42]} Nc4 {[%clk 00:14:02]} {[%emt 00:01:08]} 26. Bxc4 {[%clk
00:38:10]} {[%emt 00:00:23]} dxc4 {[%clk 00:14:26]} {[%emt 00:00:06]} 27. d5
{[%clk 00:38:34]} {[%emt 00:00:05]} Qc7 {[%clk 00:11:00]} {[%emt 00:03:56]} 28.
Qd4 {[%clk 00:34:50]} {[%emt 00:04:14]} Re5 {[%clk 00:10:55]} {[%emt 00:00:35]}
29. Re3 {[%clk 00:33:48]} {[%emt 00:01:32]} Rxf5 {[%clk 00:05:16]} {[%emt
00:06:09]} 30. Re8+ {[%clk 00:28:41]} {[%emt 00:05:37]} Kf7 {[%clk 00:05:44]}
{[%emt 00:00:02]} 31. Qe4 {[%clk 00:29:02]} {[%emt 00:00:08]} Qf4 {[%clk
00:04:16]} {[%emt 00:01:58]} 32. Qe6+ {[%clk 00:27:06]} {[%emt 00:02:27]} Kg6
{[%clk 00:04:44]} {[%emt 00:00:03]} 33. h3 {[%clk 00:27:34]} Rd6 {[%clk
00:03:15]} {[%emt 00:01:59]} 34. Qg8 {[%clk 00:24:43]} {[%emt 00:03:22]} Qf2+
{[%clk 00:02:28]} {[%emt 00:01:16]} 35. Kh1 {[%clk 00:25:12]} {[%emt 00:00:02]}
Rg5 {[%clk 00:01:48]} {[%emt 00:01:10]} 36. Re2 {[%clk 00:25:40]} {[%emt
00:00:02]} Qf5 {[%clk 00:01:01]} {[%emt 00:01:17]} 37. Re7 {[%clk 00:25:39]}
{[%emt 00:00:31]} Bxd5 {[%clk 00:00:32]} {[%emt 00:00:59]} 38. Nxd5 {[%clk
00:25:22]} {[%emt 00:00:47]} Rxd5 {[%clk 00:00:50]} {[%emt 00:00:13]} 39. Qxg7+
{[%clk 00:23:39]} {[%emt 00:02:12]} Kh5 {[%clk 00:01:19]} 40. Qxh7+ {[%clk
00:13:43]} {[%emt 00:10:26]} Qxh7 {[%clk 00:01:42]} {[%emt 00:00:07]} 41. Rxh7+
{[%clk 00:14:07]} {[%emt 00:00:06]} Kg6 {[%clk 00:02:09]} {[%emt 00:00:04]} 42.
Rxd5 {[%clk 00:14:29]} Rxd5 {[%clk 00:01:29]} {[%emt 00:01:18]} 43. Rxa7 {[%clk
00:11:11]} {[%emt 00:03:47]} Rd2 {[%clk 00:28:56]} {[%emt 00:03:02]} 44. Ra4
{[%clk 00:40:39]} {[%emt 00:01:02]} Rxb2 {[%clk 00:28:55]} {[%emt 00:00:32]} 45.
Rxc4 {[%clk 00:41:04]} {[%emt 00:00:05]} Rxa2 {[%clk 00:29:17]} {[%emt
00:00:08]} 46. Rb4 {[%clk 00:41:09]} {[%emt 00:00:25]} Ra6 {[%clk 00:29:09]}
{[%emt 00:00:38]} 47. Kh2 {[%clk 00:40:04]} {[%emt 00:01:34]} Kg5 {[%clk
00:27:06]} {[%emt 00:02:34]} 48. h4+ {[%clk 00:37:28]} {[%emt 00:03:04]} Kh5
{[%clk 00:26:19]} {[%emt 00:01:18]} 49. Kh3 {[%clk 00:37:38]} {[%emt 00:00:20]}
f5 {[%clk 00:26:29]} {[%emt 00:00:21]} 50. Rb5 {[%clk 00:37:27]} {[%emt
00:00:41]} Kg6 {[%clk 00:25:31]} {[%emt 00:01:28]} 51. g3 {[%clk 00:36:33]}
{[%emt 00:01:24]} Kf6 {[%clk 00:24:56]} {[%emt 00:01:06]} 52. Rb1 {[%clk
00:36:27]} {[%emt 00:00:35]} Kg6 {[%clk 00:24:54]} {[%emt 00:00:32]} 53. Rb4
{[%clk 00:36:36]} {[%emt 00:00:21]} Kf6 {[%clk 00:20:19]} {[%emt 00:05:04]} 54.
Rb3 {[%clk 00:37:00]} {[%emt 00:00:07]} Kg6 {[%clk 00:20:12]} {[%emt 00:00:38]}
55. Kg2 {[%clk 00:36:53]} {[%emt 00:00:35]} Kf6 {[%clk 00:19:50]} {[%emt
00:00:52]} 56. Kf3 {[%clk 00:36:52]} {[%emt 00:00:31]} Ke5 {[%clk 00:19:02]}
{[%emt 00:01:20]} 57. Rb5+ {[%clk 00:33:58]} {[%emt 00:03:23]} Kf6 {[%clk
00:19:26]} {[%emt 00:00:06]} 58. Kg2 {[%clk 00:34:13]} {[%emt 00:00:16]} Kg6
{[%clk 00:19:41]} {[%emt 00:00:14]} 59. Kh2 {[%clk 00:32:56]} {[%emt 00:01:47]}
Kf6 {[%clk 00:19:38]} {[%emt 00:00:32]} 60. Kh3 {[%clk 00:33:03]} {[%emt
00:00:23]} Kg6 {[%clk 00:19:52]} {[%emt 00:00:14]} 61. Rd5 {[%clk 00:32:28]}
{[%emt 00:01:07]} Ra3 {[%clk 00:17:24]} {[%emt 00:02:58]} 62. Rd6+ {[%clk
00:31:33]} {[%emt 00:01:26]} Kg7 {[%clk 00:14:19]} {[%emt 00:03:35]} 63. Rxb6
{[%clk 00:31:45]} {[%emt 00:00:19]} f4 {[%clk 00:14:38]} {[%emt 00:00:10]} 64.
Rb4 {[%clk 00:31:57]} {[%emt 00:00:17]} Rxg3+ {[%clk 00:14:47]} {[%emt
00:00:21]} 65. Kh2 {[%clk 00:32:24]} {[%emt 00:00:03]} Rg4 {[%clk 00:15:08]}
{[%emt 00:00:09]} 66. Kh3 {[%clk 00:32:49]} {[%emt 00:00:06]} Rg3+ {[%clk
00:15:36]} {[%emt 00:00:03]} 1/2-1/2

[Event "Schack-SM 2022: Sverigemastarklassen"]
[Site "Fyrishov, Idrottsgatan 2, Uppsala, Sweden"]
[Date "2022.07.10"]
[Round "9.3"]
[White "Seo, Jung Min"]
[Black "Hillarp, Tiger"]
[Result "1/2-1/2"]
[TimeControl "90 minutes for 40 moves + 30 minutes for the rest of the game + 30 seconds per move from move one."]
[WhiteTitle "IM"]
[BlackTitle "GM"]
[WhiteFideId "1734687"]
[BlackFideId "1700812"]
[WhiteElo "2492"]
[BlackElo "2516"]

1. d4 {[%clk 01:30:48]} {[%emt 00:00:12]} Nf6 {[%clk 01:28:39]} {[%emt
00:02:22]} 2. c4 {[%clk 01:31:03]} {[%emt 00:00:15]} d6 {[%clk 01:27:31]}
{[%emt 00:01:38]} 3. Nf3 {[%clk 01:29:01]} {[%emt 00:02:31]} Nbd7 {[%clk
01:27:39]} {[%emt 00:00:23]} 4. Nc3 {[%clk 01:29:21]} {[%emt 00:00:09]} e5
{[%clk 01:28:02]} {[%emt 00:00:07]} 5. e4 {[%clk 01:29:48]} {[%emt 00:00:03]}
Be7 {[%clk 01:28:21]} {[%emt 00:00:12]} 6. Be2 {[%clk 01:28:55]} {[%emt
00:01:22]} O-O {[%clk 01:28:09]} {[%emt 00:00:41]} 7. O-O {[%clk 01:28:47]}
{[%emt 00:00:39]} c6 {[%clk 01:28:29]} {[%emt 00:00:11]} 8. Rb1 {[%clk
01:25:37]} {[%emt 00:03:39]} Re8 {[%clk 01:10:31]} {[%emt 00:18:28]} 9. b4
{[%clk 01:20:32]} {[%emt 00:05:35]} exd4 {[%clk 01:02:46]} {[%emt 00:08:15]} 10.
Nxd4 {[%clk 01:20:35]} {[%emt 00:00:27]} Bf8 {[%clk 01:02:52]} {[%emt
00:00:24]} 11. Qc2 {[%clk 01:17:12]} {[%emt 00:03:52]} Ne5 {[%clk 00:58:02]}
{[%emt 00:05:21]} 12. Rd1 {[%clk 01:14:32]} {[%emt 00:03:09]} Qc7 {[%clk
00:58:05]} {[%emt 00:00:27]} 13. Bf4 {[%clk 01:12:16]} {[%emt 00:02:45]} Bg4
{[%clk 00:52:48]} {[%emt 00:05:48]} 14. f3 {[%clk 01:10:05]} {[%emt 00:02:42]}
Bd7 {[%clk 00:47:39]} {[%emt 00:05:39]} 15. Bg5 {[%clk 01:08:30]} {[%emt
00:02:04]} Be7 {[%clk 00:27:50]} {[%emt 00:20:20]} 16. Qd2 {[%clk 00:59:06]}
{[%emt 00:09:54]} Rad8 {[%clk 00:28:13]} {[%emt 00:00:07]} 17. Bf1 {[%clk
00:58:35]} {[%emt 00:01:00]} h6 {[%clk 00:25:46]} {[%emt 00:02:57]} 18. Be3
{[%clk 00:56:59]} {[%emt 00:02:07]} Bf8 {[%clk 00:25:32]} {[%emt 00:00:44]} 19.
Rbc1 {[%clk 00:54:33]} {[%emt 00:02:56]} Qb8 {[%clk 00:25:49]} {[%emt
00:00:13]} 20. b5 {[%clk 00:52:42]} {[%emt 00:02:21]} c5 {[%clk 00:24:19]}
{[%emt 00:02:01]} 21. Nb3 {[%clk 00:52:10]} {[%emt 00:01:01]} b6 {[%clk
00:22:47]} {[%emt 00:02:01]} 22. a4 {[%clk 00:47:41]} {[%emt 00:05:00]} Be6
{[%clk 00:22:57]} {[%emt 00:00:20]} 23. Nd5 {[%clk 00:47:42]} {[%emt 00:00:30]}
Nxd5 {[%clk 00:23:13]} {[%emt 00:00:14]} 24. exd5 {[%clk 00:48:06]} {[%emt
00:00:06]} Bf5 {[%clk 00:21:49]} {[%emt 00:01:52]} 25. a5 {[%clk 00:45:48]}
{[%emt 00:02:49]} Be7 {[%clk 00:20:21]} {[%emt 00:01:57]} 26. Re1 {[%clk
00:42:43]} {[%emt 00:03:36]} Qc7 {[%clk 00:19:04]} {[%emt 00:01:46]} 27. Bf2
{[%clk 00:42:10]} {[%emt 00:01:03]} Ng6 {[%clk 00:14:45]} {[%emt 00:04:50]} 28.
f4 {[%clk 00:39:16]} {[%emt 00:03:24]} Bf6 {[%clk 00:13:35]} {[%emt 00:01:39]}
29. g3 {[%clk 00:38:41]} {[%emt 00:01:05]} Qd7 {[%clk 00:12:51]} {[%emt
00:01:15]} 30. Rxe8+ {[%clk 00:37:56]} {[%emt 00:01:16]} Rxe8 {[%clk 00:13:15]}
{[%emt 00:00:06]} 31. Re1 {[%clk 00:37:58]} {[%emt 00:00:27]} Nf8 {[%clk
00:13:06]} {[%emt 00:00:39]} 32. Rxe8 {[%clk 00:37:04]} {[%emt 00:01:23]} Qxe8
{[%clk 00:13:31]} {[%emt 00:00:06]} 33. Bd3 {[%clk 00:34:40]} {[%emt 00:02:54]}
Bh3 {[%clk 00:12:26]} {[%emt 00:01:34]} 34. Qe3 {[%clk 00:33:08]} {[%emt
00:02:02]} Qd7 {[%clk 00:12:23]} {[%emt 00:00:34]} 35. a6 {[%clk 00:32:50]}
{[%emt 00:00:48]} g6 {[%clk 00:10:01]} {[%emt 00:02:51]} 36. Qe2 {[%clk
00:32:39]} {[%emt 00:00:41]} Nh7 {[%clk 00:08:29]} {[%emt 00:02:03]} 37. Nd2
{[%clk 00:32:39]} {[%emt 00:00:29]} Bg7 {[%clk 00:08:10]} {[%emt 00:00:49]} 38.
Ne4 {[%clk 00:32:25]} {[%emt 00:00:45]} Nf6 {[%clk 00:08:23]} {[%emt 00:00:17]}
39. Nxf6+ {[%clk 00:32:50]} {[%emt 00:00:05]} Bxf6 {[%clk 00:08:46]} {[%emt
00:00:07]} 40. Qe4 {[%clk 00:32:54]} {[%emt 00:00:26]} h5 {[%clk 00:07:00]}
{[%emt 00:02:16]} 41. Qe2 {[%clk 00:32:17]} {[%emt 00:01:06]} Kg7 {[%clk
00:06:11]} {[%emt 00:01:19]} 42. Qc2 {[%clk 00:32:11]} {[%emt 00:00:37]} Qe8
{[%clk 00:03:12]} {[%emt 00:03:27]} 43. Qe2 {[%clk 00:32:33]} {[%emt 00:00:09]}
Qd8 {[%clk 00:03:15]} {[%emt 00:00:27]} 44. Qc2 {[%clk 00:32:45]} {[%emt
00:00:18]} Ba1 {[%clk 00:01:46]} {[%emt 00:01:59]} 45. Bf1 {[%clk 00:33:05]}
{[%emt 00:00:09]} Bd7 {[%clk 00:02:04]} {[%emt 00:00:12]} 46. Qd1 {[%clk
00:29:25]} {[%emt 00:04:12]} Qf6 {[%clk 00:30:02]} {[%emt 00:02:32]} 47. Qd2
{[%clk 00:59:52]} {[%emt 00:00:02]} Bc3 {[%clk 00:28:41]} {[%emt 00:01:51]} 48.
Qd1 {[%clk 01:00:10]} {[%emt 00:00:13]} Kf8 {[%clk 00:13:15]} {[%emt 00:15:56]}
49. Be3 {[%clk 00:58:02]} {[%emt 00:02:38]} Bg4 {[%clk 00:12:21]} {[%emt
00:01:24]} 50. Qd3 {[%clk 00:54:49]} {[%emt 00:03:43]} Bf5 {[%clk 00:12:41]}
{[%emt 00:00:10]} 51. Qd1 {[%clk 00:54:29]} {[%emt 00:00:50]} Bg4 {[%clk
00:06:54]} {[%emt 00:06:16]} 1/2-1/2